bitfinex/quotes_SOLUSD_20250803
["timestamp","ask_amount","ask_price","bid_price","bid_amount"]
[1754206461930,26.0,161.63,161.62,0.72]
[1754206462398,26.0,161.63,161.61,44.26]
[1754206462706,26.0,161.63,161.61,55.7737954]
[1754206464299,26.0,161.63,161.61,55.0537954]
[1754206464505,0.72,161.67,161.62,12.2337954]
[1754206464803,26.0,161.66,161.64,11.5137954]
[1754206464987,26.0,161.66,161.65,43.42]
[1754206465188,26.72,161.66,161.65,43.42]
[1754206469143,26.0,161.66,161.65,43.42]
[1754206469626,26.72,161.66,161.65,43.42]
[1754206471128,26.0,161.66,161.65,43.4]
[1754206471929,26.0,161.66,161.65,43.38]
[1754206472232,26.0,161.66,161.64,12.2337954]
[1754206472433,26.0,161.66,161.65,43.38]
[1754206473236,26.0,161.66,161.64,0.72]
[1754206473535,26.72,161.66,161.65,43.38]
[1754206474502,26.0,161.65,161.62,11.5137954]
[1754206474829,26.69,161.65,161.63,54.8937954]
[1754206475122,26.0,161.65,161.63,55.5937954]
[1754206477603,26.0,161.65,161.63,44.08]
[1754206477804,26.0,161.65,161.63,55.5937954]
[1754206479025,26.0,161.65,161.63,0.7]
[1754206479221,26.0,161.65,161.64,43.38]
[1754206479928,26.0,161.65,161.64,54.8937954]
[1754206480824,26.0,161.65,161.64,50.74337283]
[1754206481028,26.0,161.65,161.64,50.72337283]
[1754206482008,26.69,161.66,161.63,8.06337283]
[1754206482210,26.69,161.66,161.64,43.36]
[1754206482933,26.69,161.66,161.63,8.06337283]
[1754206483111,26.69,161.66,161.64,43.36]
[1754206483427,26.0,161.66,161.64,51.42337283]
[1754206483640,26.69,161.67,161.64,44.06]
[1754206483817,26.0,161.67,161.65,43.36]
[1754206484026,0.69,161.66,161.65,43.36]
[1754206484734,26.0,161.65,161.63,7.36337283]
[1754206485045,26.69,161.65,161.64,43.36]
[1754206485536,26.0,161.65,161.64,43.36]
[1754206486035,26.69,161.66,161.64,43.36]
[1754206487912,0.69,161.66,161.64,43.36]
[1754206488137,26.0,161.65,161.64,50.72337283]
[1754206488330,26.0,161.65,161.64,43.36]
[1754206493044,0.69,161.66,161.64,43.36]
[1754206495526,0.69,161.66,161.64,44.06]
[1754206497126,0.69,161.66,161.64,43.36]
[1754206497528,26.0,161.65,161.64,43.36]
[1754206497944,26.0,161.65,161.64,50.72337283]
[1754206498749,26.0,161.65,161.64,51.42337283]
[1754206498944,26.69,161.66,161.64,51.42337283]
[1754206499545,26.69,161.66,161.64,7.36337283]
[1754206499750,26.69,161.66,161.65,43.3]
[1754206500128,26.69,161.66,161.63,7.36337283]
[1754206500451,0.69,161.65,161.64,43.3]
[1754206500650,26.0,161.65,161.64,43.3]
[1754206501037,26.0,161.65,161.64,8.06337283]
[1754206501231,26.0,161.65,161.64,51.36337283]
[1754206502941,26.0,161.65,161.64,8.06337283]
[1754206503139,26.0,161.65,161.64,0.7]
[1754206503322,26.0,161.65,161.64,44.04]
[1754206508152,26.0,161.65,161.64,43.34]
[1754206509344,26.0,161.65,161.63,8.12337283]
[1754206509535,26.0,161.65,161.64,43.34]
[1754206509744,26.0,161.65,161.64,50.70337283]
[1754206512962,26.0,161.65,161.64,43.34]
[1754206514534,0.67,161.66,161.64,50.70337283]
[1754206514735,26.67,161.66,161.64,50.70337283]
[1754206514945,26.67,161.66,161.64,51.40337283]
[1754206516163,0.67,161.65,161.63,7.42337283]
[1754206516377,0.67,161.65,161.64,43.3]
[1754206516863,26.67,161.65,161.64,43.3]
[1754206517543,26.67,161.65,161.64,50.66337283]
[1754206517738,26.67,161.65,161.64,43.3]
[1754206517948,26.0,161.64,161.63,0.06]
[1754206518168,38.2153211,161.64,161.63,43.36]
[1754206519073,30.85194827,161.64,161.63,43.36]
[1754206522565,38.2153211,161.64,161.63,43.36]
[1754206523183,38.2153211,161.64,161.63,0.06]
[1754206534187,38.20389532,161.64,161.63,0.06]
[1754206539254,26.0,161.64,161.63,0.75]
[1754206539449,24.1480568,161.65,161.63,0.75]
[1754206540082,24.8180568,161.65,161.63,0.75]
[1754206540984,24.8180568,161.65,161.63,0.06]
[1754206541680,0.67,161.65,161.63,0.75]
[1754206541866,26.0,161.64,161.63,0.75]
[1754206546401,3.23003577,161.66,161.63,8.11337283]
[1754206546683,0.03,161.67,161.65,7.36337283]
[1754206546977,0.03,161.67,161.65,50.62337283]
[1754206547284,26.0,161.66,161.65,51.31337283]
[1754206547458,26.0,161.66,161.65,50.62337283]
[1754206547981,26.0,161.66,161.65,51.31337283]
[1754206548169,26.0,161.66,161.65,43.26]
[1754206550287,30.1711519,161.66,161.65,43.26]
[1754206550765,26.0,161.66,161.65,43.26]
[1754206552563,30.17163246,161.66,161.65,43.26]
[1754206554193,30.84163246,161.66,161.65,43.26]
[1754206555488,26.0,161.65,161.63,8.11337283]
[1754206555787,26.0,161.65,161.64,43.22]
[1754206555988,26.0,161.65,161.64,43.91]
[1754206557099,30.84305832,161.65,161.63,0.06]
[1754206557279,4.84385393,161.64,161.63,43.28]
[1754206557484,38.20722676,161.64,161.63,0.06]
[1754206559898,30.17385393,161.64,161.63,0.06]
[1754206563010,30.84385393,161.64,161.63,0.06]
[1754206563705,38.20722676,161.64,161.63,0.06]
[1754206564203,30.84385393,161.64,161.63,0.06]
[1754206565006,30.17385393,161.64,161.63,0.75]
[1754206566582,26.0,161.64,161.63,0.75]
[1754206567388,30.17483818,161.64,161.63,0.75]
[1754206567889,26.0,161.64,161.63,0.75]
[1754206570408,26.0,161.64,161.63,0.06]
[1754206570781,30.17498933,161.64,161.63,0.06]
[1754206571588,30.17498933,161.64,161.63,0.75]
[1754206572418,26.0,161.64,161.63,0.75]
[1754206573431,30.17524528,161.64,161.63,0.75]
[1754206576449,30.17524528,161.64,161.63,0.06]
[1754206578421,30.17524528,161.64,161.63,43.24]
[1754206580538,4.17524528,161.64,161.63,51.29337283]
[1754206580702,4.17630682,161.66,161.63,51.29337283]
[1754206581047,30.17630682,161.66,161.65,7.36337283]
[1754206581347,0.03,161.67,161.65,51.25337283]
[1754206581502,30.20616947,161.67,161.66,8.05337283]
[1754206581707,4.20616947,161.67,161.66,8.05337283]
[1754206581941,30.20616947,161.67,161.66,8.05337283]
[1754206582147,30.20616947,161.67,161.65,50.56337283]
[1754206582326,26.03,161.67,161.65,50.56337283]
[1754206582514,26.03,161.67,161.66,8.05337283]
[1754206582714,30.2059955,161.67,161.66,8.05337283]
[1754206585137,26.03,161.67,161.66,8.05337283]
[1754206591861,26.03,161.67,161.66,7.36337283]
[1754206592023,26.03,161.67,161.66,50.52337283]
[1754206592915,26.03,161.67,161.66,51.21337283]
[1754206600371,0.03,161.67,161.66,51.21337283]
[1754206605131,0.03,161.68,161.66,51.21337283]
[1754206605458,0.03,161.69,161.67,8.02337283]
[1754206605636,0.03,161.69,161.68,50.50337283]
[1754206605832,0.03,161.69,161.68,51.16337283]
[1754206609558,5.4351622,161.7,161.68,80.61686415]
[1754206609730,0.03,161.71,161.7,36.81686415]
[1754206609937,0.03,161.71,161.7,79.95686415]
[1754206610340,0.03,161.71,161.7,80.61686415]
[1754206611046,0.03,161.71,161.7,51.16337283]
[1754206611548,0.03,161.71,161.7,80.61686415]
[1754206617373,0.1,161.76,161.7,80.61686415]
[1754206617560,0.1,161.76,161.75,7.36337283]
[1754206617756,0.78,161.76,161.75,50.50337283]
[1754206620066,0.1,161.76,161.75,50.50337283]
[1754206620463,0.78,161.76,161.75,50.50337283]
[1754206620871,0.1,161.76,161.75,51.16337283]
[1754206621263,0.1,161.76,161.75,50.50337283]
[1754206627366,0.1,161.76,161.75,51.22337283]
[1754206630979,0.69,161.81,161.8,7.36337283]
[1754206631288,0.69,161.81,161.8,50.48337283]
[1754206632388,26.69,161.81,161.8,50.48337283]
[1754206635763,26.72,161.81,161.8,50.48337283]
[1754206636969,26.72,161.81,161.8,43.12]
[1754206637971,26.0,161.79,161.74,0.72]
[1754206638175,26.0,161.79,161.78,7.36337283]
[1754206638488,0.69,161.79,161.78,50.48337283]
[1754206639097,0.69,161.8,161.78,50.48337283]
[1754206643787,26.03,161.81,161.78,51.20337283]
[1754206643974,26.72,161.81,161.78,51.20337283]
[1754206644401,26.72,161.81,161.79,7.36337283]
[1754206644588,26.03,161.81,161.8,43.12]
[1754206645304,26.72,161.81,161.8,43.12]
[1754206646201,30.87970178,161.81,161.8,43.12]
[1754206647483,26.03,161.81,161.8,43.12]
[1754206648929,0.03,161.81,161.8,51.20337283]
[1754206650285,0.03,161.81,161.8,43.84]
[1754206650493,0.03,161.81,161.8,51.20337283]
[1754206653294,0.03,161.81,161.8,43.84]
[1754206653608,0.03,161.81,161.8,51.20337283]
[1754206656100,0.03,161.81,161.8,80.65686415]
[1754206656710,0.03,161.81,161.8,43.84]
[1754206656918,0.03,161.81,161.8,51.20337283]
[1754206659008,0.03,161.81,161.8,8.08337283]
[1754206659213,0.03,161.81,161.8,51.50337283]
[1754206660128,0.03,161.81,161.8,8.08337283]
[1754206660329,0.03,161.81,161.8,51.50337283]
[1754206660715,0.03,161.81,161.8,8.08337283]
[1754206660931,0.03,161.81,161.8,51.50337283]
[1754206664122,0.03,161.81,161.8,8.08337283]
[1754206664330,0.03,161.81,161.8,51.50337283]
[1754206665447,0.03,161.81,161.8,97.74154812]
[1754206665623,0.03,161.81,161.8,116.32487812]
[1754206666319,0.03,161.83,161.8,116.32487812]
[1754206666539,0.03,161.83,161.82,7.36337283]
[1754206666739,0.03,161.83,161.82,50.76337283]
[1754206667052,0.03,161.83,161.82,51.46337283]
[1754206669939,0.03,161.83,161.82,51.44337283]
[1754206670283,0.03,161.83,161.82,8.06337283]
[1754206670449,0.03,161.83,161.82,51.44337283]
[1754206676955,0.03,161.83,161.82,8.06337283]
[1754206677172,0.03,161.83,161.82,51.40337283]
[1754206678154,0.03,161.83,161.82,68.1880568]
[1754206678358,3.2,161.87,161.83,16.78468397]
[1754206678576,3.2,161.87,161.86,7.36337283]
[1754206678777,3.2,161.87,161.86,50.70337283]
[1754206680503,3.2,161.87,161.86,51.40337283]
[1754206682360,3.2,161.87,161.86,7.36337283]
[1754206682361,3.87,161.87,161.86,7.36337283]
[1754206682560,3.87,161.87,161.86,50.76337283]
[1754206687274,3.87,161.87,161.86,43.4]
[1754206687480,3.87,161.87,161.86,50.76337283]
[1754206693799,3.87,161.87,161.86,43.4]
[1754206694114,3.87,161.87,161.86,50.76337283]
[1754206694793,3.87,161.87,161.81,18.641029]
[1754206695119,0.68,161.86,161.84,7.36337283]
[1754206695410,0.68,161.86,161.85,43.4]
[1754206697705,0.68,161.86,161.84,7.36337283]
[1754206697909,0.68,161.86,161.85,43.38]
[1754206703001,3.2,161.87,161.85,43.38]
[1754206703210,3.88,161.87,161.85,43.38]
[1754206705941,3.2,161.87,161.86,0.71]
[1754206706310,3.2,161.87,161.85,51.45337283]
[1754206706815,3.2,161.87,161.85,44.09]
[1754206707016,3.2,161.87,161.85,51.45337283]
[1754206708234,3.2,161.87,161.85,8.07337283]
[1754206708534,3.2,161.87,161.86,43.32]
[1754206708837,3.2,161.87,161.85,8.07337283]
[1754206709035,3.2,161.87,161.86,43.32]
[1754206709706,3.2,161.87,161.85,8.07337283]
[1754206709908,3.2,161.87,161.86,43.32]
[1754206711632,3.88,161.87,161.86,43.32]
[1754206712630,3.88,161.87,161.85,8.07337283]
[1754206712831,3.88,161.87,161.86,43.32]
[1754206713446,3.2,161.87,161.86,43.32]
[1754206713853,3.2,161.87,161.86,51.39337283]
[1754206714004,3.2,161.87,161.86,44.03]
[1754206714549,3.2,161.87,161.86,43.32]
[1754206715041,3.2,161.87,161.85,8.07337283]
[1754206715249,3.2,161.87,161.86,43.3]
[1754206716519,3.2,161.87,161.86,50.66337283]
[1754206718652,3.2,161.87,161.86,51.33337283]
[1754206724827,3.23,161.87,161.86,51.33337283]
[1754206731059,3.23,161.87,161.86,50.66337283]
[1754206732467,3.23,161.87,161.86,51.33337283]
[1754206733168,3.23,161.87,161.86,50.66337283]
[1754206735055,3.23,161.87,161.86,51.33337283]
[1754206738452,3.23,161.87,161.86,51.29337283]
[1754206739155,3.23,161.87,161.86,51.27337283]
[1754206740279,3.23,161.87,161.86,8.03337283]
[1754206740578,3.23,161.87,161.86,43.91]
[1754206740774,3.23,161.87,161.84,0.67]
[1754206740972,3.23,161.87,161.86,7.36337283]
[1754206742902,3.23,161.87,161.86,8.03337283]
[1754206743582,3.23,161.87,161.85,43.91]
[1754206743891,3.23,161.87,161.86,7.36337283]
[1754206745301,3.23,161.87,161.86,8.03337283]
[1754206747476,3.23,161.87,161.86,51.29337283]
[1754206762894,3.23,161.87,161.86,55.46634583]
[1754206770529,0.03,161.89,161.86,55.46634583]
[1754206770530,0.03,161.89,161.88,7.36337283]
[1754206770718,0.03,161.89,161.88,50.52337283]
[1754206771027,0.03,161.89,161.88,51.19337283]
[1754206772610,0.03,161.89,161.88,50.52337283]
[1754206774531,0.03,161.89,161.88,54.69268083]
[1754206774731,0.03,161.89,161.88,55.38268083]
[1754206775904,0.03,161.89,161.88,54.69268083]
[1754206776616,0.71,161.89,161.88,54.67268083]
[1754206776822,0.71,161.89,161.88,4.169308]
[1754206777141,0.71,161.89,161.84,0.69]
[1754206777444,0.71,161.89,161.86,7.36337283]
[1754206777610,0.71,161.89,161.87,43.18]
[1754206778408,0.71,161.89,161.87,50.54337283]
[1754206778924,0.71,161.89,161.87,43.18]
[1754206782421,0.03,161.89,161.87,51.23337283]
[1754206782634,0.03,161.89,161.87,50.54337283]
[1754206782834,0.71,161.89,161.87,50.54337283]
[1754206784633,0.71,161.89,161.88,7.36337283]
[1754206785143,0.71,161.89,161.88,43.16]
[1754206786766,37.19,161.86,161.81,0.06]
[1754206786965,2.90725815,161.69,161.63,0.75]
[1754206787128,2.90725815,161.69,161.66,7.42337283]
[1754206787329,2.90725815,161.69,161.68,51.12337283]
[1754206787751,2.90725815,161.69,161.68,51.81337283]
[1754206788054,4.993373,161.69,161.68,81.26686415]
[1754206788256,0.68,161.75,161.68,77.83337283]
[1754206788424,0.68,161.74,161.73,7.36337283]
[1754206788628,0.68,161.74,161.73,51.12337283]
[1754206788827,3.2275783,161.75,161.73,55.24942553]
[1754206789138,29.23280149,161.79,161.74,11.48942553]
[1754206789347,0.68,161.77,161.75,11.48942553]
[1754206789540,0.68,161.77,161.75,43.74]
[1754206789731,0.68,161.77,161.75,55.22942553]
[1754206790354,0.68,161.76,161.75,55.22942553]
[1754206792157,0.68,161.76,161.75,11.48942553]
[1754206792457,26.68,161.76,161.75,43.74]
[1754206793545,12.16942553,161.76,161.75,43.74]
[1754206794748,0.68,161.76,161.75,43.74]
[1754206795166,0.68,161.76,161.75,43.72]
[1754206795848,12.16942553,161.76,161.75,43.72]
[1754206796653,0.68,161.76,161.75,43.72]
[1754206797550,26.68,161.78,161.75,55.20942553]
[1754206798270,0.68,161.77,161.75,43.72]
[1754206798467,11.48942553,161.79,161.75,43.72]
[1754206798763,44.597155,161.81,161.75,43.72]
[1754206798764,0.68,161.76,161.75,43.72]
[1754206803057,0.68,161.76,161.73,11.48942553]
[1754206803271,0.68,161.76,161.74,43.68]
[1754206803783,0.68,161.76,161.75,43.68]
[1754206804145,0.68,161.76,161.73,11.48942553]
[1754206804346,11.48942553,161.74,161.68,0.06]
[1754206804669,11.48942553,161.74,161.69,43.68]
[1754206804875,0.72,161.73,161.69,43.68]
[1754206805567,12.20942553,161.73,161.69,43.68]
[1754206805949,0.72,161.72,161.69,43.68]
[1754206806150,11.48942553,161.73,161.69,43.68]
[1754206806371,0.72,161.71,161.69,43.68]
[1754206806752,0.72,161.71,161.7,43.68]
[1754206807648,12.20942553,161.71,161.68,0.06]
[1754206807853,12.20942553,161.7,161.68,0.06]
[1754206808367,11.48942553,161.7,161.69,43.68]
[1754206808981,11.48942553,161.7,161.68,0.06]
[1754206808982,38.20942553,161.7,161.68,0.06]
[1754206809185,26.0,161.7,161.69,43.7]
[1754206809360,37.48942553,161.7,161.69,43.7]
[1754206809751,38.20942553,161.7,161.69,43.7]
[1754206811276,38.20942553,161.7,161.69,43.76]
[1754206811462,38.20942553,161.7,161.69,0.06]
[1754206811662,54.9941095,161.7,161.69,0.06]
[1754206811871,28.9941095,161.7,161.69,0.06]
[1754206813365,17.50468397,161.7,161.69,0.06]
[1754206813579,0.72,161.7,161.69,0.06]
[1754206813780,26.0,161.7,161.69,0.06]
[1754206816171,26.72,161.7,161.69,0.06]
[1754206819468,38.20942553,161.7,161.69,0.06]
[1754206819676,42.32883373,161.7,161.68,0.06]
[1754206819891,12.20942553,161.69,161.68,0.06]
[1754206820278,30.81811653,161.69,161.68,0.06]
[1754206820685,12.20942553,161.69,161.68,0.06]
[1754206823284,16.33443363,161.69,161.68,0.06]
[1754206824496,30.8450081,161.69,161.68,0.06]
[1754206824674,42.33443363,161.69,161.68,0.06]
[1754206826184,30.8450081,161.69,161.68,0.06]
[1754206826369,42.33443363,161.69,161.68,0.06]
[1754206828503,60.94312463,161.69,161.68,0.06]
[1754206830179,66.15784047,161.69,161.68,0.06]
[1754206831522,11.48942553,161.68,161.67,0.06]
[1754206831801,21.5232847,161.68,161.67,0.06]
[1754206832012,38.30796867,161.68,161.67,0.06]
[1754206832301,16.78468397,161.67,161.66,0.06]
[1754206832526,33.1191176,161.67,161.66,0.06]
[1754206832681,32.3991176,161.67,161.66,0.06]
[1754206832881,33.1191176,161.67,161.66,0.06]
[1754206833098,26.0,161.65,161.64,0.2]
[1754206833292,41.61443363,161.65,161.64,0.2]
[1754206833494,42.33443363,161.65,161.64,0.2]
[1754206834115,45.56502663,161.65,161.64,0.2]
[1754206839191,45.54502663,161.65,161.64,0.2]
[1754206839411,50.72671257,161.65,161.64,0.2]
[1754206841438,62.3297106,161.65,161.64,0.2]
[1754206842226,67.5106728,161.65,161.64,0.2]
[1754206842634,16.78468397,161.64,161.63,0.06]
[1754206842936,50.01535011,161.64,161.63,0.06]
[1754206843106,58.62413093,161.64,161.63,0.06]
[1754206843439,16.78468397,161.63,161.61,0.06]
[1754206843638,51.70789842,161.63,161.61,0.06]
[1754206844250,41.70789842,161.63,161.61,0.06]
[1754206844404,38.280986,161.63,161.61,0.06]
[1754206844737,33.0991176,161.63,161.61,0.06]
[1754206845532,38.07101015,161.63,161.61,0.06]
[1754206847121,43.25287855,161.63,161.61,0.06]
[1754206847334,16.78468397,161.62,161.61,0.06]
[1754206847511,38.28233453,161.62,161.61,0.06]
[1754206847711,46.89111535,161.62,161.61,0.06]
[1754206847910,41.70789842,161.62,161.61,0.06]
[1754206848111,46.89120466,161.62,161.61,0.06]
[1754206848341,41.70789842,161.62,161.61,0.06]
[1754206849825,46.89329727,161.62,161.61,0.06]
[1754206850553,41.00789842,161.62,161.61,0.06]
[1754206850925,41.70789842,161.62,161.61,0.06]
[1754206851443,24.22321445,161.62,161.61,0.06]
[1754206854531,27.45430686,161.62,161.61,0.06]
[1754206855258,28.15430686,161.62,161.61,0.06]
[1754206861838,33.33970571,161.62,161.61,0.06]
[1754206865273,28.15430686,161.62,161.61,0.06]
[1754206865870,33.33970571,161.62,161.61,0.06]
[1754206869983,26.0,161.6,161.59,0.06]
[1754206870177,4.1250081,161.6,161.59,0.06]
[1754206870884,15.61443363,161.6,161.59,0.06]
[1754206871549,4.1250081,161.6,161.59,0.06]
[1754206871755,15.61443363,161.6,161.59,0.06]
[1754206871975,46.81544474,161.6,161.59,0.06]
[1754206872287,47.53544474,161.6,161.59,0.06]
[1754206872954,26.0,161.57,161.55,43.48]
[1754206873157,4.1250081,161.56,161.55,43.48]
[1754206874460,4.1250081,161.56,161.55,43.54]
[1754206875565,4.1250081,161.56,161.55,43.48]
[1754206882375,4.1250081,161.56,161.55,55.02942553]
[1754206882689,4.1250081,161.56,161.55,43.54]
[1754206882991,4.1250081,161.56,161.55,54.96942553]
[1754206883890,4.1250081,161.56,161.55,43.48]
[1754206885058,4.1250081,161.56,161.54,11.68942553]
[1754206885269,4.1250081,161.55,161.54,11.68942553]
[1754206885476,4.1250081,161.55,161.54,55.20942553]
[1754206888103,4.1250081,161.55,161.54,11.74942553]
[1754206888294,4.1250081,161.55,161.54,55.20942553]
[1754206888478,4.17724377,161.55,161.54,55.20942553]
[1754206890590,4.17724377,161.55,161.54,43.72]
[1754206890795,4.17724377,161.55,161.54,55.14942553]
[1754206891294,4.17724377,161.55,161.54,11.68942553]
[1754206891476,4.17724377,161.55,161.54,55.12942553]
[1754206891788,4.17724377,161.55,161.54,11.68942553]
[1754206891995,4.17724377,161.55,161.54,55.12942553]
[1754206892384,4.17724377,161.55,161.54,11.68942553]
[1754206892582,4.17724377,161.55,161.54,55.12942553]
[1754206892892,4.17724377,161.55,161.54,11.68942553]
[1754206893093,4.17724377,161.55,161.54,55.12942553]
[1754206893403,4.17724377,161.55,161.54,55.10942553]
[1754206894878,4.17724377,161.55,161.54,43.62]
[1754206895086,4.17724377,161.55,161.54,55.10942553]
[1754206895480,26.72,161.57,161.54,55.10942553]
[1754206895679,4.85773426,161.56,161.54,55.10942553]
[1754206895893,4.17773426,161.55,161.54,55.10942553]
[1754206902389,4.17773426,161.55,161.54,11.68942553]
[1754206902698,4.17773426,161.55,161.54,55.06942553]
[1754206905008,4.17773426,161.55,161.54,50.95204051]
[1754206906508,4.17773426,161.55,161.54,43.58]
[1754206906810,4.17773426,161.55,161.54,50.95204051]
[1754206906990,4.17773426,161.55,161.54,50.99204051]
[1754206907190,4.17773426,161.55,161.54,50.93204051]
[1754206907792,4.17773426,161.55,161.54,43.56]
[1754206907991,4.17773426,161.55,161.54,50.93204051]
[1754206911908,4.17773426,161.55,161.54,43.56]
[1754206912687,4.85773426,161.55,161.54,43.56]
[1754206915208,4.17773426,161.55,161.54,43.56]
[1754206916104,4.85773426,161.55,161.54,43.56]
[1754206919426,4.17773426,161.55,161.54,50.93204051]
[1754206919931,4.17773426,161.55,161.54,50.99204051]
[1754206920434,4.17773426,161.55,161.54,50.93204051]
[1754206923809,4.17773426,161.55,161.54,50.99204051]
[1754206924011,4.17773426,161.55,161.54,50.93204051]
[1754206929342,26.7,161.57,161.54,50.93204051]
[1754206929640,4.18136797,161.56,161.54,43.56]
[1754206929842,26.7,161.57,161.55,7.37204051]
[1754206930036,26.7,161.57,161.56,50.73204051]
[1754206930237,30.88136579,161.57,161.56,50.73204051]
[1754206936449,30.88136579,161.57,161.56,43.36]
[1754206936641,30.88136579,161.57,161.56,50.73204051]
[1754206941465,30.88136579,161.57,161.56,43.36]
[1754206941758,30.88136579,161.57,161.56,50.73204051]
[1754206946475,30.18136579,161.57,161.56,50.73204051]
[1754206947041,30.88136579,161.57,161.56,50.73204051]
[1754206947968,30.18136579,161.57,161.56,50.73204051]
[1754206948142,4.18136579,161.57,161.56,50.79204051]
[1754206948338,4.18136579,161.58,161.56,50.79204051]
[1754206948559,0.03,161.59,161.57,7.37204051]
[1754206948773,26.73,161.59,161.58,50.71204051]
[1754206948945,30.90761437,161.59,161.58,50.71204051]
[1754206950853,30.90761437,161.59,161.58,43.34]
[1754206954144,26.0,161.57,161.55,7.37204051]
[1754206954360,4.87761437,161.56,161.54,0.2]
[1754206954570,0.7,161.56,161.55,50.71204051]
[1754206954763,4.87727618,161.56,161.55,50.71204051]
[1754206958784,4.87727618,161.56,161.55,50.77204051]
[1754206959877,30.87727618,161.56,161.55,50.77204051]
[1754206963257,4.87727618,161.56,161.55,43.4]
[1754206973700,12.24931669,161.56,161.55,0.06]
[1754206974007,12.24931669,161.56,161.55,43.4]
[1754206974771,43.47148452,161.56,161.55,43.4]
[1754206975083,17.47148452,161.56,161.55,43.4]
[1754206975589,26.0,161.55,161.54,43.54]
[1754206975788,38.25931669,161.55,161.54,43.54]
[1754206975985,38.25931669,161.55,161.54,0.2]
[1754206976185,46.86809751,161.55,161.54,0.2]
[1754206976585,39.496057,161.55,161.54,0.2]
[1754206976794,46.86809751,161.55,161.54,0.2]
[1754206978604,77.64677491,161.55,161.54,0.2]
[1754206978786,72.42544893,161.55,161.54,0.2]
[1754206981180,65.05340842,161.55,161.54,0.2]
[1754206981381,77.63831508,161.55,161.54,0.2]
[1754206981611,55.64076496,161.55,161.54,0.2]
[1754206984702,12.786057,161.55,161.54,0.2]
[1754206984910,4.17727618,161.55,161.54,0.2]
[1754206985092,4.86727618,161.57,161.54,0.2]
[1754206985293,26.0,161.55,161.54,0.2]
[1754206985498,30.17727618,161.55,161.54,0.2]
[1754206987287,30.17727618,161.55,161.54,7.63204051]
[1754206987288,4.17727618,161.55,161.54,7.63204051]
[1754206987492,4.86727618,161.58,161.54,7.63204051]
[1754206987716,4.86727618,161.58,161.55,50.71204051]
[1754206987890,4.86727618,161.58,161.55,43.34]
[1754206988092,26.0,161.56,161.55,50.71204051]
[1754206988410,30.17727618,161.56,161.55,50.71204051]
[1754206989407,30.17727618,161.56,161.55,43.34]
[1754206989618,30.86727618,161.56,161.55,43.34]
[1754206990310,30.17727618,161.56,161.55,43.34]
[1754206990501,30.17727618,161.56,161.55,50.71204051]
[1754206991414,26.0,161.56,161.55,50.71204051]
[1754206992617,26.0,161.58,161.55,50.77204051]
[1754206992808,26.0,161.58,161.57,7.37204051]
[1754206993010,30.16401561,161.58,161.57,7.37204051]
[1754206995026,30.16401561,161.58,161.55,43.34]
[1754206995027,30.85401561,161.58,161.55,43.34]
[1754206995230,26.69,161.58,161.57,7.37204051]
[1754206995524,30.85612124,161.58,161.57,7.37204051]
[1754207002223,26.0,161.57,161.55,43.34]
[1754207002417,26.0,161.57,161.56,7.37204051]
[1754207002623,30.16825061,161.57,161.56,7.37204051]
[1754207002929,30.85825061,161.57,161.56,7.37204051]
[1754207004324,30.16825061,161.57,161.56,7.37204051]